fUST/lending_fUST_20250628
["ID","MTS","AMOUNT","RATE_DAILY","PERIOD"]
[368232138,1751068266794,-1087.84,0.00020821,2]
[368232140,1751068266803,-460.0,0.00020821,2]
[368232142,1751068266812,-460.0,0.00020821,2]
[368232144,1751068266827,-460.0,0.00020821,2]
[368232146,1751068266837,-460.0,0.00020821,2]
[368232148,1751068266846,-875.72,0.00020821,2]
[368232149,1751068266855,-961.92,0.00020821,2]
[368232150,1751068266870,-756.46,0.00020821,2]
[368232151,1751068266879,-4598.12,0.00020821,2]
[368232152,1751068266889,-1012.39,0.00020821,2]
[368232153,1751068266899,-460.0,0.00020821,2]
[368232154,1751068266908,-4666.54,0.00020821,2]
[368232155,1751068266917,-460.0,0.00020821,2]
[368232156,1751068266927,-1729.41,0.00020821,2]
[368232157,1751068266937,-690.642,0.00020824,2]
[368232158,1751068266946,-6289.26151161,0.00020866,4]
[368232159,1751068266956,-1885.0,0.0002087,2]
[368232160,1751068266965,-716.195754,0.00020879,2]
[368232162,1751068266975,-742.6949969,0.00020934,2]
[368232164,1751068266985,-500.0,0.00020958,15]
[368232166,1751068266994,-770.17471178,0.00020989,2]
[368232168,1751068267003,-798.67117612,0.00021044,2]
[368232170,1751068267012,-1000.0,0.00021053,2]
[368232172,1751068267021,-1000.0,0.00021053,2]
[368232174,1751068267031,-500.0,0.00021053,2]
[368232176,1751068267041,-634.30227546,0.00021053,2]
[368232178,1751068267050,-567.61125249,0.00021053,2]
[368232180,1751068267060,-1000.0,0.00021053,2]
[368232182,1751068267069,-1200.0,0.00021053,2]
[368232184,1751068267078,-336.00383614,0.0002106,2]
[368232186,1751068267088,-1000.0,0.00021094,5]
[368232188,1751068267098,-7628.67887784,0.00021095,2]
[368232190,1751068267106,-32987.83681394,0.00021095,2]
[368232192,1751068267116,-460.0,0.00021095,2]
[368232194,1751068267126,-460.0,0.00021095,2]
[368232196,1751068267135,-460.0,0.00021095,2]
[368232198,1751068267145,-460.0,0.00021095,2]
[368232200,1751068267154,-460.0,0.00021095,2]
[368232202,1751068267164,-935.73,0.00021095,2]
[368232204,1751068267173,-475.67364333,0.00021095,2]
[368232206,1751068267184,-460.0,0.00021095,2]
[368232208,1751068267194,-460.0,0.00021095,2]
[368232210,1751068267203,-513.13,0.00021095,2]
[368232212,1751068267213,-460.0,0.00021095,2]
[368232214,1751068267223,-460.0,0.00021095,2]
[368232216,1751068267233,-460.0,0.00021095,2]
[368232218,1751068267242,-1231.63,0.00021095,2]
[368232220,1751068267251,-460.0,0.00021095,2]
[368232222,1751068267261,-564.77,0.00021095,2]
[368232224,1751068267270,-460.0,0.00021095,2]
[368232236,1751068267280,-580.69,0.00021095,2]
[368232238,1751068267382,-460.0,0.00021095,2]
[368232240,1751068267392,-460.0,0.00021095,2]
[368232241,1751068267402,-460.0,0.00021095,2]
[368232244,1751068267411,-478.61,0.00021095,2]
[368232245,1751068267421,-151.0,0.00021095,2]
[368232247,1751068267430,-151.0,0.00021095,2]
[368232249,1751068267440,-460.0,0.00021095,2]
[368232252,1751068267449,-460.0,0.00021095,2]
[368232254,1751068267459,-460.0,0.00021095,2]
[368232256,1751068267469,-460.0,0.00021095,2]
[368232257,1751068267478,-460.0,0.00021095,2]
[368232260,1751068267488,-460.0,0.00021095,2]
[368232262,1751068267497,-1126.41,0.00021095,2]
[368232264,1751068267508,-460.0,0.00021095,2]
[368232266,1751068267519,-460.0,0.00021095,2]
[368232268,1751068267528,-460.0,0.00021095,2]
[368232269,1751068267538,-685.33,0.00021095,2]
[368232271,1751068267547,-2633.95,0.00021095,2]
[368232273,1751068267557,-460.0,0.00021095,2]
[368232275,1751068267566,-536.6620076,0.00021095,2]
[368232277,1751068267575,-602.73,0.00021095,2]
[368232279,1751068267587,-775.61,0.00021095,2]
[368232282,1751068267598,-460.0,0.00021095,2]
[368232283,1751068267608,-1188.33,0.00021095,2]
[368232285,1751068267618,-460.0,0.00021095,2]
[368232288,1751068267628,-460.0,0.00021095,2]
[368232290,1751068267637,-460.0,0.00021095,2]
[368232292,1751068267646,-460.0,0.00021095,2]
[368232294,1751068267655,-460.0,0.00021095,2]
[368232296,1751068267664,-165.48,0.00021095,2]
[368232297,1751068267674,-555.04,0.00021095,2]
[368232299,1751068267683,-6720.85,0.00021095,2]
[368232301,1751068267693,-360.87957347,0.00021095,2]
[368232303,1751068267702,-460.0,0.00021095,2]
[368232305,1751068267712,-460.0,0.00021095,2]
[368232307,1751068267721,-6059.72,0.00021095,2]
[368232310,1751068267731,-1858.25,0.00021095,2]
[368232312,1751068267741,-460.0,0.00021095,2]
[368232314,1751068267751,-460.0,0.00021095,2]
[368232316,1751068267761,-627.71,0.00021095,2]
[368232318,1751068267770,-2632.06,0.00021095,2]
[368232319,1751068267779,-460.0,0.00021095,2]
[368232321,1751068267789,-460.0,0.00021095,2]
[368232324,1751068267799,-460.0,0.00021095,2]
[368232326,1751068267808,-1731.49,0.00021095,2]
[368232328,1751068267818,-460.0,0.00021095,2]
[368232330,1751068267827,-4205.16,0.00021095,2]
[368232332,1751068267837,-460.0,0.00021095,2]
[368232334,1751068267847,-842.34,0.00021095,2]
[368232336,1751068267856,-2188.05,0.00021095,2]
[368232337,1751068267865,-858.75,0.00021095,2]
[368232340,1751068267875,-765.63,0.00021095,2]
[368232342,1751068268092,-1775.32,0.00021095,2]
[368232344,1751068268102,-715.26,0.00021095,2]
[368232346,1751068268112,-1383.95,0.00021095,2]
[368232348,1751068268121,-742.27,0.00021095,2]
[368232350,1751068268131,-536.32,0.00021095,2]
[368232352,1751068268140,-460.0,0.00021095,2]
[368232354,1751068268150,-1160.83,0.00021095,2]
[368232356,1751068268159,-650.5,0.00021095,2]
[368232358,1751068268168,-947.45,0.00021095,2]
[368232360,1751068268177,-4032.26,0.00021095,2]
[368232362,1751068268187,-151.0,0.00021095,2]
[368232364,1751068268196,-460.0,0.00021095,2]
[368232366,1751068268205,-460.0,0.00021095,2]
[368232368,1751068268214,-3901.79,0.00021095,2]
[368232370,1751068268224,-829.11,0.00021095,2]
[368232372,1751068268234,-787.52,0.00021095,2]
[368232374,1751068268243,-151.0,0.00021095,2]
[368232376,1751068268253,-2096.66,0.00021095,2]
[368232378,1751068268262,-460.0,0.00021095,2]
[368232380,1751068268272,-460.0,0.00021095,2]
[368232382,1751068268281,-460.0,0.00021095,2]
[368232384,1751068268290,-4853.84,0.00021095,2]
[368232386,1751068268300,-460.0,0.00021095,2]
[368232388,1751068268309,-762.24,0.00021095,2]
[368232390,1751068268318,-742.59,0.00021095,2]
[368232392,1751068268327,-460.0,0.00021095,2]
[368232393,1751068268336,-460.0,0.00021095,2]
[368232396,1751068268346,-460.0,0.00021095,2]
[368232398,1751068268356,-922.39,0.00021095,2]
[368232400,1751068268365,-650.45,0.00021095,2]
[368232402,1751068268374,-762.98,0.00021095,2]
[368232404,1751068268384,-401.29482588,0.00021095,2]
[368232406,1751068268393,-460.0,0.00021095,2]
[368232408,1751068268402,-460.0,0.00021095,2]
[368232410,1751068268410,-151.0,0.00021095,2]
[368232412,1751068268420,-943.11,0.00021095,2]
[368232413,1751068268430,-2330.57,0.00021095,2]
[368232415,1751068268440,-151.0,0.00021095,2]
[368232417,1751068268450,-460.0,0.00021095,2]
[368232420,1751068268460,-3250.01,0.00021095,2]
[368232422,1751068268469,-151.0,0.00021095,2]
[368232424,1751068268478,-315.634386,0.00021095,2]
[368232426,1751068268487,-151.0,0.00021095,2]
[368232428,1751068268496,-560.76,0.00021095,2]
[368232430,1751068268506,-315.634386,0.00021095,2]
[368232432,1751068268515,-2668.16,0.00021095,2]
[368232434,1751068268524,-460.0,0.00021095,2]
[368232436,1751068268533,-460.0,0.00021095,2]
[368232438,1751068268543,-1431.83,0.00021095,2]
[368232440,1751068268552,-1785.61,0.00021095,2]
[368232442,1751068268561,-185.44766805,0.00021095,2]
[368232444,1751068268570,-1276.19,0.00021095,2]
[368232445,1751068268580,-460.0,0.00021095,2]
[368232447,1751068268589,-460.0,0.00021095,2]
[368232449,1751068268599,-3204.86,0.00021095,2]
[368232451,1751068268608,-460.0,0.00021095,2]
[368232453,1751068268617,-1087.84,0.00021095,2]
[368232455,1751068268627,-460.0,0.00021095,2]
[368232457,1751068268636,-460.0,0.00021095,2]
[368232459,1751068268647,-460.0,0.00021095,2]
[368232461,1751068268657,-460.0,0.00021095,2]
[368232463,1751068268666,-151.0,0.00021095,2]
[368232465,1751068268676,-875.72,0.00021095,2]
[368232467,1751068268685,-961.92,0.00021095,2]
[368232469,1751068268695,-756.46,0.00021095,2]
[368232471,1751068268704,-4598.12,0.00021095,2]
[368232473,1751068268713,-211.248514,0.00021095,2]
[368232475,1751068268723,-1012.39,0.00021095,2]
[368232477,1751068268732,-211.248514,0.00021095,2]
[368232479,1751068268741,-4666.54,0.00021095,2]
[368232481,1751068268750,-460.0,0.00021095,2]
[368232483,1751068268759,-1729.41,0.00021095,2]
[368232485,1751068268768,-828.22200964,0.00021099,2]
[368232487,1751068268778,-6289.26151161,0.00021107,4]
[368232490,1751068268791,-161.47645334,0.00021154,2]
[368232492,1751068268800,-5933.15220565,0.00021265,2]
[368232494,1751068268810,-5000.0,0.00021317,2]
[368232496,1751068268819,-6289.26151161,0.00021348,5]
[368232498,1751068268828,-500.0,0.0002135,2]
[368232500,1751068268837,-500.0,0.0002135,2]
[368232502,1751068268846,-500.0,0.0002135,2]
[368232504,1751068268856,-500.0,0.00021364,2]
[368232506,1751068268865,-460.0,0.00021369,2]
[368232508,1751068268874,-151.0,0.00021369,2]
[368232510,1751068268884,-151.0,0.00021369,2]
[368232512,1751068268893,-151.0,0.00021369,2]
[368232514,1751068268903,-151.0,0.00021369,2]
[368232516,1751068268912,-151.0,0.00021369,2]
[368232518,1751068268922,-172.4531322,0.00021369,2]
[368232520,1751068268931,-151.0,0.00021369,2]
[368232522,1751068268940,-151.0,0.00021369,2]
[368232524,1751068268950,-200.42665,0.00021369,2]
[368232526,1751068268959,-174.318175,0.00021369,2]
[368232528,1751068268968,-174.318175,0.00021369,2]
[368232530,1751068268978,-151.0,0.00021369,2]
[368232532,1751068268987,-460.0,0.00021369,2]
[368232534,1751068268997,-460.0,0.00021369,2]
[368232536,1751068269006,-460.0,0.00021369,2]
[368232538,1751068269015,-438.99,0.00021369,2]
[368232540,1751068269025,-935.73,0.00021369,2]
[368232541,1751068269034,-460.0,0.00021369,2]
[368232542,1751068269044,-158.11158878,0.00021369,2]
[368232543,1751068269054,-460.0,0.00021369,2]
[368232544,1751068269063,-513.13,0.00021369,2]
[368232545,1751068269072,-460.0,0.00021369,2]
[368232546,1751068269081,-151.0,0.00021369,2]
[368232547,1751068269091,-460.0,0.00021369,2]
[368232548,1751068269101,-275.933794,0.00021369,2]
[368232549,1751068269110,-1231.63,0.00021369,2]
[368232550,1751068269119,-460.0,0.00021369,2]
[368232551,1751068269128,-564.77,0.00021369,2]
[368232552,1751068269137,-151.0,0.00021369,2]
[368232553,1751068269146,-151.0,0.00021369,2]
[368232554,1751068269156,-460.0,0.00021369,2]
[368232555,1751068269165,-155.218412,0.00021369,2]
[368232556,1751068269174,-580.69,0.00021369,2]
[368232558,1751068269183,-278.379418,0.00021369,2]
[368232570,1751068269291,-155.218412,0.00021369,2]
[368232572,1751068269304,-278.379418,0.00021369,2]
[368232574,1751068269314,-460.0,0.00021369,2]
[368232576,1751068269323,-185.91726529,0.00021369,2]
[368232578,1751068269332,-460.0,0.00021369,2]
[368232580,1751068269342,-478.61,0.00021369,2]
[368232582,1751068269352,-460.0,0.00021369,2]
[368232584,1751068269360,-460.0,0.00021369,2]
[368232586,1751068269369,-460.0,0.00021369,2]
[368232588,1751068269379,-460.0,0.00021369,2]
[368232590,1751068269388,-460.0,0.00021369,2]
[368232592,1751068269397,-460.0,0.00021369,2]
[368232594,1751068269406,-1126.41,0.00021369,2]
[368232596,1751068269415,-460.0,0.00021369,2]
[368232598,1751068269425,-460.0,0.00021369,2]
[368232600,1751068269434,-460.0,0.00021369,2]
[368232602,1751068269443,-685.33,0.00021369,2]
[368232604,1751068269452,-2633.95,0.00021369,2]
[368232606,1751068269461,-460.0,0.00021369,2]
[368232608,1751068269470,-602.73,0.00021369,2]
[368232610,1751068269479,-775.61,0.00021369,2]
[368232612,1751068269488,-460.0,0.00021369,2]
[368232614,1751068269497,-1188.33,0.00021369,2]
[368232616,1751068269507,-176.797928,0.00021369,2]
[368232618,1751068269516,-160.800168,0.00021369,2]
[368232620,1751068269525,-460.0,0.00021369,2]
[368232622,1751068269534,-460.0,0.00021369,2]
[368232624,1751068269544,-160.800168,0.00021369,2]
[368232626,1751068269553,-460.0,0.00021369,2]
[368232628,1751068269563,-460.0,0.00021369,2]
[368232630,1751068269572,-555.04,0.00021369,2]
[368232632,1751068269582,-6720.85,0.00021369,2]
[368232634,1751068269594,-460.0,0.00021369,2]
[368232636,1751068269603,-505.97,0.00021369,2]
[368232638,1751068269614,-6059.72,0.00021369,2]
[368232640,1751068269624,-197.086534,0.00021369,2]
[368232642,1751068269633,-1858.25,0.00021369,2]
[368232644,1751068269643,-460.0,0.00021369,2]
[368232646,1751068269652,-197.086534,0.00021369,2]
[368232648,1751068269661,-627.71,0.00021369,2]
[368232650,1751068269673,-2632.06,0.00021369,2]
[368232652,1751068269682,-460.0,0.00021369,2]
[368232654,1751068269691,-478.46342209,0.00021369,2]
[368232656,1751068269701,-500.0,0.00021369,16]
[368232658,1751068269711,-460.0,0.00021369,2]
[368232660,1751068269720,-1731.49,0.00021369,2]
[368232662,1751068269730,-291.23006975,0.00021369,2]
[368232664,1751068269740,-4205.16,0.00021369,2]
[368232666,1751068269750,-460.0,0.00021369,2]
[368232668,1751068269761,-842.34,0.00021369,2]
[368232670,1751068269770,-2188.05,0.00021369,2]
[368232672,1751068269780,-858.75,0.00021369,2]
[368232674,1751068269789,-765.63,0.00021369,2]
[368232676,1751068269799,-666.482233,0.00021369,2]
[368232678,1751068269808,-1775.32,0.00021369,2]
[368232680,1751068269818,-666.482233,0.00021369,2]
[368232682,1751068269827,-715.26,0.00021369,2]
[368232684,1751068269837,-1383.95,0.00021369,2]
[368232687,1751068269847,-742.27,0.00021369,2]
[368232689,1751068269858,-536.32,0.00021369,2]
[368232691,1751068269867,-501.48619889,0.00021369,2]
[368232693,1751068269877,-1160.83,0.00021369,2]
[368232695,1751068269887,-650.5,0.00021369,2]
[368232697,1751068269897,-947.45,0.00021369,2]
[368232698,1751068269907,-4032.26,0.00021369,2]
[368232701,1751068269917,-280.82,0.00021369,2]
[368232702,1751068269926,-460.0,0.00021369,2]
[368232704,1751068269936,-3901.79,0.00021369,2]
[368232707,1751068269946,-829.11,0.00021369,2]
[368232709,1751068269956,-787.52,0.00021369,2]
[368232711,1751068269966,-2096.66,0.00021369,2]
[368232713,1751068269975,-460.0,0.00021369,2]
[368232715,1751068269984,-156.55555328,0.00021369,2]
[368232717,1751068269994,-460.0,0.00021369,2]
[368232719,1751068270008,-4853.84,0.00021369,2]
[368232721,1751068270026,-251.39785064,0.00021369,2]
[368232723,1751068270035,-762.24,0.00021369,2]
[368232725,1751068270044,-742.59,0.00021369,2]
[368232726,1751068270054,-460.0,0.00021369,2]
[368232728,1751068270064,-460.0,0.00021369,2]
[368232730,1751068270073,-922.39,0.00021369,2]
[368232732,1751068270083,-460.0,0.00021369,2]
[368232735,1751068270092,-650.45,0.00021369,2]
[368232737,1751068270102,-762.98,0.00021369,2]
[368232739,1751068270112,-460.0,0.00021369,2]
[368232741,1751068270121,-943.11,0.00021369,2]
[368232743,1751068270131,-2330.57,0.00021369,2]
[368232745,1751068270140,-460.0,0.00021369,2]
[368232747,1751068270149,-3250.01,0.00021369,2]
[368232749,1751068270159,-560.76,0.00021369,2]
[368232751,1751068270168,-2668.16,0.00021369,2]
[368232753,1751068270177,-460.0,0.00021369,2]
[368232755,1751068270186,-1431.83,0.00021369,2]
[368232756,1751068270196,-1785.61,0.00021369,2]
[368232758,1751068270206,-1276.19,0.00021369,2]
[368232761,1751068270215,-460.0,0.00021369,2]
[368232763,1751068270226,-460.0,0.00021369,2]
[368232765,1751068270235,-3204.86,0.00021369,2]
[368232767,1751068270245,-460.0,0.00021369,2]
[368232769,1751068270255,-1087.84,0.00021369,2]
[368232770,1751068270264,-460.0,0.00021369,2]
[368232773,1751068270274,-460.0,0.00021369,2]
[368232775,1751068270283,-367.42878218,0.00021369,2]
[368232776,1751068270292,-460.0,0.00021369,2]
[368232779,1751068270306,-151.0,0.00021369,2]
[368232781,1751068270316,-875.72,0.00021369,2]
[368232783,1751068270325,-961.92,0.00021369,2]
[368232785,1751068270335,-756.46,0.00021369,2]
[368232787,1751068270344,-4598.12,0.00021369,2]
[368232789,1751068270355,-1012.39,0.00021369,2]
[368232791,1751068270364,-4666.54,0.00021369,2]
[368232792,1751068270374,-511.47367336,0.00021369,2]
[368232794,1751068270384,-1729.41,0.00021369,2]
[368232797,1751068270394,-500.0,0.00021372,2]
[368232798,1751068270403,-500.0,0.00021392,2]
[368232801,1751068270413,-500.0,0.00021392,2]
[368232802,1751068270422,-500.0,0.00021392,2]
[368232804,1751068270432,-562.69625406,0.00021392,2]
[368232806,1751068270442,-500.0,0.00021392,2]
[368232808,1751068270452,-500.0,0.00021392,2]
[368232810,1751068270461,-500.0,0.00021392,2]
[368232813,1751068270474,-500.0,0.00021392,2]
[368232814,1751068270485,-500.0,0.00021392,2]
[368232816,1751068270494,-500.0,0.00021392,2]
[368232819,1751068270504,-500.0,0.00021392,2]
[368232821,1751068270514,-500.0,0.00021392,2]
[368232822,1751068270524,-500.0,0.00021392,2]
[368232825,1751068270534,-500.0,0.00021392,2]
[368232827,1751068270544,-500.0,0.00021392,2]
[368232829,1751068270554,-467.00804926,0.00021416,2]
[368232831,1751068270563,-500.0,0.00021416,2]
[368232832,1751068270572,-500.0,0.00021418,2]
[368232834,1751068270582,-500.0,0.00021424,2]
[368232837,1751068270591,-500.0,0.00021424,2]
[368232839,1751068270602,-611.314,0.00021426,2]
[368232841,1751068270611,-500.0,0.00021442,2]
[368232843,1751068270620,-500.0,0.00021442,2]
[368232845,1751068270630,-500.0,0.00021442,2]
[368232846,1751068270640,-500.0,0.00021442,2]
[368232849,1751068270649,-277.73056029,0.00021442,2]
[368232851,1751068270659,-193.76337974,0.00021452,2]
[368232852,1751068270668,-151.0,0.00021456,2]
[368232854,1751068270678,-203.487797,0.00021464,2]
[368232856,1751068270687,-304.861779,0.00021464,2]
[368232858,1751068270706,-203.487797,0.00021464,2]
[368232861,1751068270716,-978.942829,0.00021464,2]
[368232862,1751068270725,-978.942829,0.00021464,2]
[368232865,1751068270736,-500.0,0.00021488,2]
[368232867,1751068270747,-587.0,0.00021584,2]
[368232869,1751068270756,-720.0,0.00021585,2]
[368232871,1751068270765,-6289.26151161,0.0002159,5]
[368232873,1751068270776,-1500.0,0.00021601,2]
[368232875,1751068270785,-1800.0,0.00021601,2]
[368232876,1751068270795,-460.0,0.00021643,2]
[368232878,1751068270804,-460.0,0.00021643,2]
[368232890,1751068270893,-460.0,0.00021643,2]
[368232892,1751068270909,-460.0,0.00021643,2]
[368232894,1751068270919,-935.73,0.00021643,2]
[368232895,1751068270928,-460.0,0.00021643,2]
[368232896,1751068270938,-460.0,0.00021643,2]
[368232897,1751068270947,-513.13,0.00021643,2]
[368232898,1751068270956,-460.0,0.00021643,2]
[368232899,1751068270966,-460.0,0.00021643,2]
[368232900,1751068270975,-1231.63,0.00021643,2]
[368232901,1751068270985,-461.91124575,0.00021643,2]
[368232902,1751068270994,-564.77,0.00021643,2]
[368232903,1751068271003,-460.0,0.00021643,2]
[368232904,1751068271013,-580.69,0.00021643,2]
[368232905,1751068271022,-460.0,0.00021643,2]
[368232906,1751068271031,-460.0,0.00021643,2]
[368232907,1751068271040,-478.61,0.00021643,2]
[368232909,1751068271049,-460.0,0.00021643,2]
[368232911,1751068271058,-460.0,0.00021643,2]
[368232913,1751068271067,-460.0,0.00021643,2]
[368232915,1751068271076,-211.71794713,0.00021643,2]
[368232917,1751068271086,-601.84,0.00021643,2]
[368232919,1751068271095,-1126.41,0.00021643,2]
[368232921,1751068271104,-460.0,0.00021643,2]
[368232923,1751068271113,-460.0,0.00021643,2]
[368232925,1751068271123,-227.03,0.00021643,2]
[368232927,1751068271132,-685.33,0.00021643,2]
[368232929,1751068271141,-2633.95,0.00021643,2]
[368232931,1751068271151,-460.0,0.00021643,2]
[368232933,1751068271161,-602.73,0.00021643,2]
[368232935,1751068271170,-775.61,0.00021643,2]
[368232937,1751068271180,-460.0,0.00021643,2]
[368232939,1751068271189,-1188.33,0.00021643,2]
[368232941,1751068271198,-460.0,0.00021643,2]
[368232943,1751068271207,-460.0,0.00021643,2]
[368232945,1751068271217,-460.0,0.00021643,2]
[368232947,1751068271227,-549.31081265,0.00021643,2]
[368232949,1751068271236,-555.04,0.00021643,2]
[368232951,1751068271246,-6720.85,0.00021643,2]
[368232953,1751068271255,-460.0,0.00021643,2]
[368232955,1751068271265,-6059.72,0.00021643,2]
[368232957,1751068271274,-1858.25,0.00021643,2]
[368232959,1751068271283,-460.0,0.00021643,2]
[368232961,1751068271293,-627.71,0.00021643,2]
[368232963,1751068271306,-2632.06,0.00021643,2]
[368232965,1751068271315,-460.0,0.00021643,2]
[368232967,1751068271323,-460.0,0.00021643,2]
[368232969,1751068271332,-1731.49,0.00021643,2]
[368232971,1751068271343,-4205.16,0.00021643,2]
[368232973,1751068271355,-460.0,0.00021643,2]
[368232975,1751068271364,-842.34,0.00021643,2]
[368232977,1751068271374,-2188.05,0.00021643,2]
[368232979,1751068271384,-858.75,0.00021643,2]
[368232981,1751068271393,-765.63,0.00021643,2]
[368232983,1751068271402,-1775.32,0.00021643,2]
[368232985,1751068271411,-715.26,0.00021643,2]
[368232987,1751068271420,-1383.95,0.00021643,2]
[368232989,1751068271430,-742.27,0.00021643,2]
[368232991,1751068271439,-536.32,0.00021643,2]
[368232993,1751068271447,-1160.83,0.00021643,2]
[368232995,1751068271457,-650.5,0.00021643,2]
[368232997,1751068271467,-947.45,0.00021643,2]
[368232999,1751068271476,-151.0,0.00021643,2]
[368233001,1751068271486,-4032.26,0.00021643,2]
[368233003,1751068271495,-315.99,0.00021643,2]
[368233005,1751068271505,-3901.79,0.00021643,2]
[368233007,1751068271514,-829.11,0.00021643,2]
[368233009,1751068271525,-787.52,0.00021643,2]
[368233011,1751068271535,-151.0,0.00021643,2]
[368233013,1751068271544,-2096.66,0.00021643,2]
[368233015,1751068271553,-460.0,0.00021643,2]
[368233017,1751068271563,-4853.84,0.00021643,2]
[368233019,1751068271572,-762.24,0.00021643,2]
[368233021,1751068271583,-742.59,0.00021643,2]
[368233023,1751068271592,-460.0,0.00021643,2]
[368233025,1751068271602,-386.52835291,0.00021643,2]
[368233027,1751068271611,-922.39,0.00021643,2]
[368233029,1751068271620,-460.0,0.00021643,2]
[368233031,1751068271630,-650.45,0.00021643,2]
[368233033,1751068271639,-762.98,0.00021643,2]
[368233035,1751068271648,-460.0,0.00021643,2]
[368233037,1751068271658,-151.0,0.00021643,2]
[368233039,1751068271667,-943.11,0.00021643,2]
[368233041,1751068271677,-151.0,0.00021643,2]
[368233043,1751068271687,-2330.57,0.00021643,2]
[368233045,1751068271696,-460.0,0.00021643,2]
[368233047,1751068271705,-3250.01,0.00021643,2]
[368233049,1751068271715,-151.0,0.00021643,2]
[368233051,1751068271724,-315.634386,0.00021643,2]
[368233053,1751068271734,-151.0,0.00021643,2]
[368233055,1751068271743,-560.76,0.00021643,2]
[368233057,1751068271753,-315.634386,0.00021643,2]
[368233059,1751068271762,-2668.16,0.00021643,2]
[368233061,1751068271771,-460.0,0.00021643,2]
[368233063,1751068271780,-1431.83,0.00021643,2]
[368233065,1751068271790,-1785.61,0.00021643,2]
[368233067,1751068271799,-1276.19,0.00021643,2]
[368233068,1751068271808,-460.0,0.00021643,2]
[368233070,1751068271818,-3204.86,0.00021643,2]
[368233072,1751068271827,-325.7,0.00021643,2]
[368233074,1751068271837,-1087.84,0.00021643,2]
[368233075,1751068271846,-460.0,0.00021643,2]
[368233077,1751068271856,-460.0,0.00021643,2]
[368233079,1751068271866,-460.0,0.00021643,2]
[368233080,1751068271875,-875.72,0.00021643,2]
[368233081,1751068271885,-961.92,0.00021643,2]
[368233083,1751068271895,-756.46,0.00021643,2]
[368233084,1751068271905,-4598.12,0.00021643,2]
[368233086,1751068271914,-211.248514,0.00021643,2]
[368233088,1751068271923,-1012.39,0.00021643,2]
[368233089,1751068271932,-211.248514,0.00021643,2]
[368233091,1751068271941,-4666.54,0.00021643,2]
[368233092,1751068271951,-1729.41,0.00021643,2]
[368233094,1751068271960,-966.0,0.0002171,2]
[368233095,1751068271969,-654.0,0.0002171,2]
[368233097,1751068271978,-2161.0,0.0002171,2]
[368233098,1751068271988,-413.555,0.0002171,2]
[368233100,1751068271997,-193.76337974,0.00021726,2]
[368233101,1751068272006,-193.76337972,0.00021726,2]
[368233103,1751068272015,-1275.810033,0.00021747,4]
[368233104,1751068272025,-180.3394797,0.00021753,2]
[368233106,1751068272034,-500.0,0.0002178,17]
[368233107,1751068272043,-2351.0,0.00021796,2]
[368233109,1751068272052,-3687.37,0.000218,2]
[368233111,1751068272061,-151.0,0.00021802,2]
[368233112,1751068272071,-151.0,0.00021802,2]